[Event "Titled Tuesday Blitz October 31 Early 2023"]
[White "Der_Balak_3Halak"]
[Black "Ozates, Tuna"]
[BlackFideId "6354521"]
[WhiteElo "2323"]
[BlackElo "2673"]
[Result "0-1"]
[Round "1"]
[TimeControl "180+1"]
[Date "2023.10.31"]
[WhiteClock "0:00:03"]
[BlackClock "0:00:08"]
[Board "116"]

1. e4 {[%clk 0:02:37]}  c5 {[%clk 0:02:59]} 2. c3 {[%clk 0:02:35]}  g6 {[%clk 0:02:53]} 3. d4 {[%clk 0:02:33]}  cxd4 {[%clk 0:02:51]} 4. cxd4 {[%clk 0:02:34]}  d5 {[%clk 0:02:51]} 5. e5 {[%clk 0:02:33]}  Nc6 {[%clk 0:02:48]} 6. Be3 {[%clk 0:02:27]}  Nh6 {[%clk 0:02:47]} 7. Nc3 {[%clk 0:02:23]}  Nf5 {[%clk 0:02:46]} 8. Nf3 {[%clk 0:02:14]}  Nxe3 {[%clk 0:02:44]} 9. fxe3 {[%clk 0:02:15]}  Bh6 {[%clk 0:02:42]} 10. Qd2 {[%clk 0:01:52]}  Bg4 {[%clk 0:02:41]} 11. Be2 {[%clk 0:01:50]}  O-O {[%clk 0:02:33]} 12. O-O {[%clk 0:01:49]}  e6 {[%clk 0:02:32]} 13. h3 {[%clk 0:01:48]}  Bxf3 {[%clk 0:02:28]} 14. Rxf3 {[%clk 0:01:47]}  Rc8 {[%clk 0:02:27]} 15. Nb5 {[%clk 0:01:44]}  Rc7 {[%clk 0:02:19]} 16. Nxc7 {[%clk 0:01:43]}  Qxc7 {[%clk 0:02:20]} 17. Raf1 {[%clk 0:01:39]}  Qb6 {[%clk 0:02:18]} 18. Qc3 {[%clk 0:01:28]}  Ne7 {[%clk 0:02:16]} 19. g4 {[%clk 0:01:13]}  Bg5 {[%clk 0:02:03]} 20. Qb3 {[%clk 0:01:08]}  Qc7 {[%clk 0:01:57]} 21. Qc3 {[%clk 0:01:05]}  Qb6 {[%clk 0:01:55]} 22. b3 {[%clk 0:01:06]}  Nc6 {[%clk 0:01:51]} 23. Qe1 {[%clk 0:01:04]}  Nb4 {[%clk 0:01:46]} 24. Qf2 {[%clk 0:01:01]}  Qc7 {[%clk 0:01:43]} 25. a3 {[%clk 0:00:57]}  Nc6 {[%clk 0:01:37]} 26. h4 {[%clk 0:00:57]}  Bd8 {[%clk 0:01:36]} 27. h5 {[%clk 0:00:57]}  Qe7 {[%clk 0:01:35]} 28. hxg6 {[%clk 0:00:57]}  hxg6 {[%clk 0:01:36]} 29. Kg2 {[%clk 0:00:54]}  Qe8 {[%clk 0:01:15]} 30. Bb5 {[%clk 0:00:48]}  Bg5 {[%clk 0:01:13]} 31. Rh1 {[%clk 0:00:45]}  Kg7 {[%clk 0:01:02]} 32. Kf1 {[%clk 0:00:39]}  Qe7 {[%clk 0:01:00]} 33. Rfh3 {[%clk 0:00:36]}  Rg8 {[%clk 0:00:57]} 34. Rh7+ {[%clk 0:00:34]}  Kf8 {[%clk 0:00:56]} 35. Kg2 {[%clk 0:00:33]}  Nd8 {[%clk 0:00:56]} 36. Rf1 {[%clk 0:00:32]}  Rg7 {[%clk 0:00:51]} 37. Rh8+ {[%clk 0:00:27]}  Rg8 {[%clk 0:00:51]} 38. Rfh1 {[%clk 0:00:28]}  Rxh8 {[%clk 0:00:51]} 39. Rxh8+ {[%clk 0:00:27]}  Kg7 {[%clk 0:00:52]} 40. Re8 {[%clk 0:00:28]}  Qc7 {[%clk 0:00:46]} 41. Qf1 {[%clk 0:00:23]}  a6 {[%clk 0:00:43]} 42. Be2 {[%clk 0:00:20]}  Qd7 {[%clk 0:00:38]} 43. Rxd8 {[%clk 0:00:15]}  Qxd8 {[%clk 0:00:39]} 44. Qc1 {[%clk 0:00:15]}  Qa5 {[%clk 0:00:35]} 45. b4 {[%clk 0:00:13]}  Qa4 {[%clk 0:00:34]} 46. Kf3 {[%clk 0:00:13]}  Qb3 {[%clk 0:00:32]} 47. Bf1 {[%clk 0:00:09]}  Qa2 {[%clk 0:00:25]} 48. Be2 {[%clk 0:00:10]}  Bh4 {[%clk 0:00:19]} 49. Qc3 {[%clk 0:00:09]}  Qb1 {[%clk 0:00:17]} 50. Kg2 {[%clk 0:00:09]}  Be1 {[%clk 0:00:15]} 51. Qd3 {[%clk 0:00:07]}  Qc1 {[%clk 0:00:14]} 52. Qd1 {[%clk 0:00:07]}  Qc3 {[%clk 0:00:13]} 53. Qd3 {[%clk 0:00:07]}  Qa1 {[%clk 0:00:13]} 54. Qd1 {[%clk 0:00:08]}  Qc3 {[%clk 0:00:11]} 55. Qd3 {[%clk 0:00:08]}  Qc6 {[%clk 0:00:11]} 56. Qd1 {[%clk 0:00:08]}  Bh4 {[%clk 0:00:11]} 57. Qh1 {[%clk 0:00:07]}  Bg5 {[%clk 0:00:11]} 58. Qh3 {[%clk 0:00:06]}  Qc3 {[%clk 0:00:10]} 59. e4 {[%clk 0:00:05]}  Qxd4 {[%clk 0:00:10]} 60. exd5 {[%clk 0:00:04]}  Qxd5+ {[%clk 0:00:10]} 61. Qf3 {[%clk 0:00:05]}  Qxe5 {[%clk 0:00:11]} 62. Bd3 {[%clk 0:00:05]}  b5 {[%clk 0:00:11]} 63. Be2 {[%clk 0:00:04]}  Be7 {[%clk 0:00:11]} 64. Bf1 {[%clk 0:00:04]}  Bd6 {[%clk 0:00:12]} 65. Kf2 {[%clk 0:00:04]}  Qh2+ {[%clk 0:00:11]} 66. Bg2 {[%clk 0:00:03]}  Qh4+ {[%clk 0:00:11]} 67. Kf1 {[%clk 0:00:03]}  Qg5 {[%clk 0:00:10]} 68. Qc3+ {[%clk 0:00:03]}  Be5 {[%clk 0:00:11]} 69. Qc2 {[%clk 0:00:02]}  Qxg4 {[%clk 0:00:10]} 70. Qe2 {[%clk 0:00:02]}  Qf4+ {[%clk 0:00:09]} 71. Bf3 {[%clk 0:00:02]}  Bd4 {[%clk 0:00:09]} 72. Kg2 {[%clk 0:00:02]}  e5 {[%clk 0:00:09]} 73. Bg4 {[%clk 0:00:02]}  f5 {[%clk 0:00:09]} 74. Qf2 {[%clk 0:00:02]}  Qxf2+ {[%clk 0:00:08]} 75. Kh1 {[%clk 0:00:03]}  Qg1# {[%clk 0:00:08]} 0-1


[Site "https://www.chess.com"]

[Event "Titled Tuesday Blitz October 31 Early 2023"]
[White "Janaszak, Dawid"]
[Black "GlacierGambit"]
[WhiteFideId "1119206"]
[WhiteElo "2664"]
[BlackElo "2319"]
[Result "1-0"]
[Round "1"]
[TimeControl "180+1"]
[Date "2023.10.31"]
[WhiteClock "0:00:50"]
[BlackClock "0:00:29"]
[Board "119"]

1. e4 {[%clk 0:03:00]}  e6 {[%clk 0:03:00]} 2. d4 {[%clk 0:03:00]}  d5 {[%clk 0:03:01]} 3. Bd3 {[%clk 0:03:00]}  c5 {[%clk 0:03:00]} 4. exd5 {[%clk 0:03:01]}  exd5 {[%clk 0:03:01]} 5. c3 {[%clk 0:03:01]}  Nc6 {[%clk 0:03:01]} 6. Nf3 {[%clk 0:03:01]}  Bd6 {[%clk 0:03:01]} 7. O-O {[%clk 0:03:00]}  Nge7 {[%clk 0:03:02]} 8. dxc5 {[%clk 0:02:46]}  Bxc5 {[%clk 0:03:03]} 9. b4 {[%clk 0:02:45]}  Bb6 {[%clk 0:03:00]} 10. a4 {[%clk 0:02:40]}  a6 {[%clk 0:02:48]} 11. a5 {[%clk 0:02:39]}  Ba7 {[%clk 0:02:48]} 12. Nbd2 {[%clk 0:02:35]}  O-O {[%clk 0:02:47]} 13. Qc2 {[%clk 0:02:32]}  h6 {[%clk 0:02:44]} 14. h3 {[%clk 0:02:25]}  Be6 {[%clk 0:02:41]} 15. Nb3 {[%clk 0:02:20]}  Rc8 {[%clk 0:02:41]} 16. Qe2 {[%clk 0:02:19]}  Bf5 {[%clk 0:02:31]} 17. Be3 {[%clk 0:02:15]}  Bxe3 {[%clk 0:02:27]} 18. Qxe3 {[%clk 0:02:14]}  Re8 {[%clk 0:02:27]} 19. Rfe1 {[%clk 0:02:11]}  Qd7 {[%clk 0:02:14]} 20. Nc5 {[%clk 0:02:10]}  Qc7 {[%clk 0:02:07]} 21. Bxf5 {[%clk 0:02:09]}  Nxf5 {[%clk 0:02:07]} 22. Qxe8+ {[%clk 0:02:10]}  Rxe8 {[%clk 0:02:07]} 23. Rxe8+ {[%clk 0:02:11]}  Kh7 {[%clk 0:02:08]} 24. Rae1 {[%clk 0:02:09]}  Nd6 {[%clk 0:01:52]} 25. Rf8 {[%clk 0:02:03]}  Nb5 {[%clk 0:01:36]} 26. Ree8 {[%clk 0:01:53]}  Nxc3 {[%clk 0:01:19]} 27. Nd3 {[%clk 0:01:02]}  Ne4 {[%clk 0:00:52]} 28. g3 {[%clk 0:00:50]}  Kg6 {[%clk 0:00:32]} 29. Nf4+ {[%clk 0:00:49]}  Kf6 {[%clk 0:00:29]} 30. Nxd5+ {[%clk 0:00:50]} 1-0


[Site "https://www.chess.com"]

[Event "Titled Tuesday Blitz October 31 Early 2023"]
[White "Rosen, Eric"]
[Black "Federzoni, Enzo"]
[WhiteFideId "2032562"]
[BlackFideId "2173301"]
[WhiteElo "2660"]
[BlackElo "2318"]
[Result "1-0"]
[Round "1"]
[TimeControl "180+1"]
[Date "2023.10.31"]
[WhiteClock "0:00:04"]
[BlackClock "0:00:24"]
[Board "121"]

1. e4 {[%clk 0:03:00]}  c5 {[%clk 0:02:53]} 2. Nc3 {[%clk 0:03:00]}  e6 {[%clk 0:02:52]} 3. Nf3 {[%clk 0:03:00]}  a6 {[%clk 0:02:51]} 4. g3 {[%clk 0:03:00]}  d6 {[%clk 0:02:49]} 5. Bg2 {[%clk 0:03:00]}  Nc6 {[%clk 0:02:48]} 6. d4 {[%clk 0:03:01]}  cxd4 {[%clk 0:02:48]} 7. Nxd4 {[%clk 0:03:02]}  Bd7 {[%clk 0:02:48]} 8. O-O {[%clk 0:03:02]}  Nf6 {[%clk 0:02:48]} 9. Re1 {[%clk 0:03:02]}  Be7 {[%clk 0:02:45]} 10. a4 {[%clk 0:02:57]}  O-O {[%clk 0:02:44]} 11. h3 {[%clk 0:02:50]}  Rc8 {[%clk 0:02:32]} 12. Kh2 {[%clk 0:02:39]}  Ne5 {[%clk 0:02:29]} 13. f4 {[%clk 0:02:35]}  Nc4 {[%clk 0:02:29]} 14. b3 {[%clk 0:02:18]}  Na5 {[%clk 0:02:29]} 15. Bb2 {[%clk 0:02:18]}  Nc6 {[%clk 0:02:25]} 16. e5 {[%clk 0:02:05]}  Ne8 {[%clk 0:02:20]} 17. Qd2 {[%clk 0:01:54]}  Nxd4 {[%clk 0:02:16]} 18. Qxd4 {[%clk 0:01:54]}  Bc6 {[%clk 0:02:17]} 19. Rad1 {[%clk 0:01:44]}  Bxg2 {[%clk 0:02:10]} 20. Kxg2 {[%clk 0:01:45]}  d5 {[%clk 0:02:11]} 21. f5 {[%clk 0:01:37]}  Qa5 {[%clk 0:02:06]} 22. Re2 {[%clk 0:01:09]}  Bb4 {[%clk 0:02:00]} 23. Rd3 {[%clk 0:01:03]}  b5 {[%clk 0:02:00]} 24. f6 {[%clk 0:00:57]}  g6 {[%clk 0:01:56]} 25. axb5 {[%clk 0:00:48]}  axb5 {[%clk 0:01:57]} 26. Nd1 {[%clk 0:00:38]}  Kh8 {[%clk 0:01:51]} 27. Qf4 {[%clk 0:00:35]}  Bc5 {[%clk 0:01:42]} 28. Qh6 {[%clk 0:00:25]}  Rg8 {[%clk 0:01:40]} 29. Bd4 {[%clk 0:00:21]}  Bf8 {[%clk 0:01:36]} 30. Qe3 {[%clk 0:00:21]}  b4 {[%clk 0:01:37]} 31. Nf2 {[%clk 0:00:20]}  Nc7 {[%clk 0:01:34]} 32. Ng4 {[%clk 0:00:16]}  Nb5 {[%clk 0:01:33]} 33. Nh6 {[%clk 0:00:17]}  Bxh6 {[%clk 0:01:24]} 34. Qxh6 {[%clk 0:00:18]}  Na3 {[%clk 0:01:24]} 35. Rdd2 {[%clk 0:00:07]}  Rc7 {[%clk 0:01:21]} 36. Be3 {[%clk 0:00:07]}  Nb5 {[%clk 0:01:16]} 37. Bg5 {[%clk 0:00:06]}  Qa8 {[%clk 0:01:12]} 38. Rf2 {[%clk 0:00:05]}  d4+ {[%clk 0:01:10]} 39. Kh2 {[%clk 0:00:06]}  Nc3 {[%clk 0:01:07]} 40. Rf4 {[%clk 0:00:03]}  Qe4 {[%clk 0:01:06]} 41. Rxe4 {[%clk 0:00:03]}  Nxe4 {[%clk 0:01:07]} 42. Rxd4 {[%clk 0:00:02]}  Rxc2+ {[%clk 0:01:05]} 43. Kg1 {[%clk 0:00:03]}  Nxg5 {[%clk 0:01:01]} 44. Qxg5 {[%clk 0:00:02]}  Rb2 {[%clk 0:01:02]} 45. Qh6 {[%clk 0:00:02]}  Rb1+ {[%clk 0:01:00]} 46. Kg2 {[%clk 0:00:02]}  Rb2+ {[%clk 0:01:01]} 47. Kf3 {[%clk 0:00:02]}  Rxb3+ {[%clk 0:01:01]} 48. Kf2 {[%clk 0:00:03]}  Rb2+ {[%clk 0:01:01]} 49. Rd2 {[%clk 0:00:04]}  Rxd2+ {[%clk 0:00:53]} 50. Qxd2 {[%clk 0:00:04]}  b3 {[%clk 0:00:54]} 51. Qb4 {[%clk 0:00:05]}  h6 {[%clk 0:00:51]} 52. Qxb3 {[%clk 0:00:05]}  Rc8 {[%clk 0:00:49]} 53. Qb7 {[%clk 0:00:05]}  Rf8 {[%clk 0:00:47]} 54. Qe7 {[%clk 0:00:05]}  Kg8 {[%clk 0:00:46]} 55. g4 {[%clk 0:00:04]}  Rc8 {[%clk 0:00:44]} 56. Qa3 {[%clk 0:00:04]}  Rd8 {[%clk 0:00:41]} 57. Kg3 {[%clk 0:00:04]}  Rc8 {[%clk 0:00:39]} 58. Qe3 {[%clk 0:00:05]}  Kh7 {[%clk 0:00:38]} 59. Qa7 {[%clk 0:00:05]}  Kg8 {[%clk 0:00:37]} 60. Qd7 {[%clk 0:00:06]}  Rf8 {[%clk 0:00:34]} 61. h4 {[%clk 0:00:06]}  Ra8 {[%clk 0:00:34]} 62. Kf3 {[%clk 0:00:05]}  Ra3+ {[%clk 0:00:33]} 63. Kf2 {[%clk 0:00:05]}  Ra2+ {[%clk 0:00:33]} 64. Ke3 {[%clk 0:00:06]}  Ra3+ {[%clk 0:00:34]} 65. Kf4 {[%clk 0:00:04]}  Ra8 {[%clk 0:00:34]} 66. Qc6 {[%clk 0:00:04]}  Rb8 {[%clk 0:00:34]} 67. Ke3 {[%clk 0:00:04]}  Rb3+ {[%clk 0:00:34]} 68. Kd2 {[%clk 0:00:04]}  Rb8 {[%clk 0:00:31]} 69. Qc7 {[%clk 0:00:04]}  Ra8 {[%clk 0:00:31]} 70. Kd3 {[%clk 0:00:03]}  Ra3+ {[%clk 0:00:30]} 71. Kc4 {[%clk 0:00:03]}  Ra4+ {[%clk 0:00:31]} 72. Kb5 {[%clk 0:00:04]}  Rxg4 {[%clk 0:00:30]} 73. Qd8+ {[%clk 0:00:03]}  Kh7 {[%clk 0:00:24]} 74. Qf8 {[%clk 0:00:04]} 1-0


[Site "https://www.chess.com"]

[Event "Titled Tuesday Blitz October 31 Early 2023"]
[White "Mesa Cruz, Juan Carlos"]
[Black "Kleiman, Jake"]
[WhiteFideId "6423400"]
[BlackFideId "2020041"]
[WhiteElo "2318"]
[BlackElo "2660"]
[Result "0-1"]
[Round "1"]
[TimeControl "180+1"]
[Date "2023.10.31"]
[WhiteClock "0:00:14"]
[BlackClock "0:01:51"]
[Board "122"]

1. e4 {[%clk 0:02:57]}  c5 {[%clk 0:02:59]} 2. Nf3 {[%clk 0:02:56]}  e6 {[%clk 0:03:00]} 3. g3 {[%clk 0:02:56]}  Nc6 {[%clk 0:02:58]} 4. Bg2 {[%clk 0:02:56]}  Nf6 {[%clk 0:02:59]} 5. Qe2 {[%clk 0:02:54]}  d5 {[%clk 0:02:58]} 6. d3 {[%clk 0:02:47]}  Be7 {[%clk 0:02:53]} 7. O-O {[%clk 0:02:47]}  O-O {[%clk 0:02:54]} 8. e5 {[%clk 0:02:45]}  Nd7 {[%clk 0:02:53]} 9. h4 {[%clk 0:02:44]}  a5 {[%clk 0:02:52]} 10. a4 {[%clk 0:02:44]}  b6 {[%clk 0:02:52]} 11. Re1 {[%clk 0:02:40]}  Ba6 {[%clk 0:02:52]} 12. Nbd2 {[%clk 0:02:38]}  Nb4 {[%clk 0:02:47]} 13. Nf1 {[%clk 0:02:35]}  c4 {[%clk 0:02:48]} 14. dxc4 {[%clk 0:01:31]}  Bxc4 {[%clk 0:02:47]} 15. Qd1 {[%clk 0:01:29]}  Rc8 {[%clk 0:02:44]} 16. Ne3 {[%clk 0:01:20]}  Ba6 {[%clk 0:02:44]} 17. h5 {[%clk 0:01:15]}  h6 {[%clk 0:02:42]} 18. c3 {[%clk 0:01:11]}  Nd3 {[%clk 0:02:42]} 19. Bf1 {[%clk 0:01:11]}  Nxe1 {[%clk 0:02:42]} 20. Bxa6 {[%clk 0:01:06]}  Nxf3+ {[%clk 0:02:41]} 21. Qxf3 {[%clk 0:01:06]}  Nxe5 {[%clk 0:02:36]} 22. Qf4 {[%clk 0:01:00]}  Bd6 {[%clk 0:02:32]} 23. Bxc8 {[%clk 0:00:56]}  Qxc8 {[%clk 0:02:28]} 24. Ng4 {[%clk 0:00:47]}  Qc7 {[%clk 0:02:07]} 25. Nxh6+ {[%clk 0:00:28]}  gxh6 {[%clk 0:02:07]} 26. Qxh6 {[%clk 0:00:28]}  f6 {[%clk 0:02:08]} 27. f4 {[%clk 0:00:28]}  Ng4 {[%clk 0:01:56]} 28. Qg6+ {[%clk 0:00:27]}  Qg7 {[%clk 0:01:57]} 29. Qd3 {[%clk 0:00:25]}  Nh6 {[%clk 0:01:52]} 30. Qe3 {[%clk 0:00:14]}  Bc5 {[%clk 0:01:51]} 0-1


[Site "https://www.chess.com"]

[Event "Titled Tuesday Blitz October 31 Early 2023"]
[White "Bao, Qilin"]
[Black "Petrova, Irina"]
[WhiteFideId "8605750"]
[BlackFideId "14124122"]
[WhiteElo "2657"]
[BlackElo "2316"]
[Result "1-0"]
[Round "1"]
[TimeControl "180+1"]
[Date "2023.10.31"]
[WhiteClock "0:01:41"]
[BlackClock "0:00:47"]
[Board "125"]

1. d4 {[%clk 0:02:59]}  d6 {[%clk 0:03:00]} 2. Nf3 {[%clk 0:02:58]}  g6 {[%clk 0:03:00]} 3. Bf4 {[%clk 0:02:57]}  Bg7 {[%clk 0:02:59]} 4. e3 {[%clk 0:02:57]}  Nd7 {[%clk 0:02:56]} 5. h3 {[%clk 0:02:56]}  e5 {[%clk 0:02:55]} 6. Bh2 {[%clk 0:02:56]}  Ne7 {[%clk 0:02:54]} 7. Nc3 {[%clk 0:02:51]}  O-O {[%clk 0:02:53]} 8. dxe5 {[%clk 0:02:50]}  dxe5 {[%clk 0:02:51]} 9. Bc4 {[%clk 0:02:50]}  c6 {[%clk 0:02:46]} 10. O-O {[%clk 0:02:49]}  b5 {[%clk 0:02:42]} 11. Bb3 {[%clk 0:02:49]}  a5 {[%clk 0:02:36]} 12. a4 {[%clk 0:02:49]}  b4 {[%clk 0:02:35]} 13. Ne4 {[%clk 0:02:48]}  Ba6 {[%clk 0:02:34]} 14. Re1 {[%clk 0:02:48]}  Nf5 {[%clk 0:02:12]} 15. Nd6 {[%clk 0:02:41]}  Qc7 {[%clk 0:02:00]} 16. Nxf5 {[%clk 0:02:37]}  gxf5 {[%clk 0:02:01]} 17. Nh4 {[%clk 0:02:37]}  f4 {[%clk 0:01:58]} 18. exf4 {[%clk 0:02:20]}  exf4 {[%clk 0:01:58]} 19. Re7 {[%clk 0:02:20]}  Rad8 {[%clk 0:01:47]} 20. Qg4 {[%clk 0:02:14]}  Kh8 {[%clk 0:01:43]} 21. Bxf7 {[%clk 0:02:12]}  Bf6 {[%clk 0:01:38]} 22. Bxf4 {[%clk 0:02:03]}  Qb6 {[%clk 0:01:28]} 23. Rxd7 {[%clk 0:02:01]}  Rxd7 {[%clk 0:01:26]} 24. Qxd7 {[%clk 0:02:01]}  Qd4 {[%clk 0:00:58]} 25. Qxd4 {[%clk 0:01:43]}  Bxd4 {[%clk 0:00:59]} 26. Rd1 {[%clk 0:01:44]}  c5 {[%clk 0:00:47]} 27. Rxd4 {[%clk 0:01:41]}  cxd4 {[%clk 0:00:47]} 28. Be5# {[%clk 0:01:41]} 1-0


[Site "https://www.chess.com"]

[Event "Titled Tuesday Blitz October 31 Early 2023"]
[White "chessculator16"]
[Black "Diaz Perez, Michel Alejandro"]
[BlackFideId "3517179"]
[WhiteElo "2314"]
[BlackElo "2657"]
[Result "1-0"]
[Round "1"]
[TimeControl "180+1"]
[Date "2023.10.31"]
[WhiteClock "0:01:39"]
[BlackClock "0:00:32"]
[Board "126"]

1. d4 {[%clk 0:03:00]}  Nf6 {[%clk 0:02:59]} 2. c4 {[%clk 0:02:59]}  d6 {[%clk 0:02:57]} 3. Nf3 {[%clk 0:02:57]}  Nbd7 {[%clk 0:02:58]} 4. Nc3 {[%clk 0:02:55]}  g6 {[%clk 0:02:59]} 5. e4 {[%clk 0:02:51]}  Bg7 {[%clk 0:03:00]} 6. Be2 {[%clk 0:02:50]}  e5 {[%clk 0:03:00]} 7. Be3 {[%clk 0:02:49]}  O-O {[%clk 0:02:57]} 8. O-O {[%clk 0:02:49]}  Re8 {[%clk 0:02:55]} 9. Qc2 {[%clk 0:02:48]}  exd4 {[%clk 0:02:51]} 10. Nxd4 {[%clk 0:02:47]}  Nc5 {[%clk 0:02:51]} 11. f3 {[%clk 0:02:46]}  c6 {[%clk 0:02:51]} 12. b4 {[%clk 0:02:46]}  Ne6 {[%clk 0:02:51]} 13. Rad1 {[%clk 0:02:45]}  Qc7 {[%clk 0:02:50]} 14. Rfe1 {[%clk 0:02:40]}  Nxd4 {[%clk 0:02:46]} 15. Bxd4 {[%clk 0:02:40]}  Be6 {[%clk 0:02:47]} 16. c5 {[%clk 0:02:36]}  d5 {[%clk 0:02:33]} 17. exd5 {[%clk 0:02:35]}  Nxd5 {[%clk 0:02:33]} 18. Bxg7 {[%clk 0:02:35]}  Kxg7 {[%clk 0:02:34]} 19. Nxd5 {[%clk 0:02:35]}  Bxd5 {[%clk 0:02:35]} 20. Bc4 {[%clk 0:02:34]}  Rxe1+ {[%clk 0:02:00]} 21. Rxe1 {[%clk 0:02:33]}  Rd8 {[%clk 0:02:01]} 22. Bxd5 {[%clk 0:02:28]}  Rxd5 {[%clk 0:02:02]} 23. Qc3+ {[%clk 0:02:28]}  f6 {[%clk 0:02:02]} 24. Re6 {[%clk 0:02:26]}  Qf7 {[%clk 0:02:01]} 25. Qe3 {[%clk 0:02:25]}  Rd7 {[%clk 0:02:01]} 26. a3 {[%clk 0:02:22]}  a6 {[%clk 0:02:01]} 27. g4 {[%clk 0:02:19]}  Kf8 {[%clk 0:02:01]} 28. Qh6+ {[%clk 0:02:14]}  Kg8 {[%clk 0:01:58]} 29. Qe3 {[%clk 0:02:14]}  g5 {[%clk 0:01:49]} 30. Kg2 {[%clk 0:02:12]}  Kf8 {[%clk 0:01:49]} 31. Kg3 {[%clk 0:02:10]}  Re7 {[%clk 0:01:49]} 32. Rxe7 {[%clk 0:02:10]}  Qxe7 {[%clk 0:01:50]} 33. Qd3 {[%clk 0:02:03]}  Kg7 {[%clk 0:01:41]} 34. Kg2 {[%clk 0:01:58]}  Qe6 {[%clk 0:01:33]} 35. h3 {[%clk 0:01:56]}  Qe7 {[%clk 0:01:27]} 36. Kg3 {[%clk 0:01:56]}  Qc7+ {[%clk 0:01:27]} 37. Kg2 {[%clk 0:01:56]}  Qf7 {[%clk 0:01:22]} 38. a4 {[%clk 0:01:56]}  Qa2+ {[%clk 0:01:09]} 39. Kg3 {[%clk 0:01:56]}  Qe6 {[%clk 0:01:09]} 40. a5 {[%clk 0:01:55]}  Qf7 {[%clk 0:01:07]} 41. Kg2 {[%clk 0:01:55]}  Kh6 {[%clk 0:01:04]} 42. Qf5 {[%clk 0:01:52]}  Qe7 {[%clk 0:01:03]} 43. Kf2 {[%clk 0:01:51]}  Kg7 {[%clk 0:01:01]} 44. f4 {[%clk 0:01:46]}  h6 {[%clk 0:00:59]} 45. fxg5 {[%clk 0:01:46]}  hxg5 {[%clk 0:01:00]} 46. Qd3 {[%clk 0:01:44]}  Qe6 {[%clk 0:00:59]} 47. Kg3 {[%clk 0:01:43]}  Qe5+ {[%clk 0:00:59]} 48. Kg2 {[%clk 0:01:43]}  Qd5+ {[%clk 0:00:44]} 49. Qxd5 {[%clk 0:01:43]}  cxd5 {[%clk 0:00:45]} 50. b5 {[%clk 0:01:40]}  axb5 {[%clk 0:00:34]} 51. c6 {[%clk 0:01:39]}  bxc6 {[%clk 0:00:32]} 52. a6 {[%clk 0:01:39]} 1-0


[Site "https://www.chess.com"]

[Event "Titled Tuesday Blitz October 31 Early 2023"]
[White "Arslanov, Shamil"]
[Black "Harriott, Tyrell"]
[WhiteFideId "4192826"]
[BlackFideId "2086484"]
[WhiteElo "2647"]
[BlackElo "2308"]
[Result "0-1"]
[Round "1"]
[TimeControl "180+1"]
[Date "2023.10.31"]
[WhiteClock "0:00:14"]
[BlackClock "0:00:41"]
[Board "129"]

1. d4 {[%clk 0:02:44]}  e6 {[%clk 0:02:59]} 2. e4 {[%clk 0:02:33]}  d5 {[%clk 0:02:58]} 3. Be3 {[%clk 0:02:33]}  f5 {[%clk 0:02:56]} 4. Nc3 {[%clk 0:02:17]}  dxe4 {[%clk 0:02:25]} 5. f3 {[%clk 0:02:05]}  exf3 {[%clk 0:02:25]} 6. Nxf3 {[%clk 0:02:04]}  Nf6 {[%clk 0:02:25]} 7. Bc4 {[%clk 0:01:52]}  Bd6 {[%clk 0:02:24]} 8. Qe2 {[%clk 0:01:32]}  O-O {[%clk 0:02:23]} 9. O-O-O {[%clk 0:01:30]}  Kh8 {[%clk 0:02:17]} 10. Ng5 {[%clk 0:01:28]}  Qe8 {[%clk 0:02:15]} 11. Bd2 {[%clk 0:01:24]}  Nc6 {[%clk 0:02:13]} 12. Nb5 {[%clk 0:01:05]}  a6 {[%clk 0:02:05]} 13. Nxd6 {[%clk 0:01:05]}  cxd6 {[%clk 0:02:05]} 14. Nxe6 {[%clk 0:00:33]}  Bxe6 {[%clk 0:02:03]} 15. Qxe6 {[%clk 0:00:33]}  Nxd4 {[%clk 0:01:53]} 16. Qxe8 {[%clk 0:00:23]}  Raxe8 {[%clk 0:01:52]} 17. Bf4 {[%clk 0:00:23]}  Ne2+ {[%clk 0:01:30]} 18. Bxe2 {[%clk 0:00:22]}  Rxe2 {[%clk 0:01:31]} 19. Bxd6 {[%clk 0:00:17]}  Rc8 {[%clk 0:01:29]} 20. c3 {[%clk 0:00:17]}  Ne4 {[%clk 0:01:25]} 21. Rhf1 {[%clk 0:00:10]}  g6 {[%clk 0:01:23]} 22. Be5+ {[%clk 0:00:10]}  Kg8 {[%clk 0:01:23]} 23. Rd7 {[%clk 0:00:09]}  Ng5 {[%clk 0:01:14]} 24. Rg7+ {[%clk 0:00:09]}  Kf8 {[%clk 0:01:15]} 25. Bd4 {[%clk 0:00:09]}  Re4 {[%clk 0:01:12]} 26. Rxh7 {[%clk 0:00:09]}  Nxh7 {[%clk 0:01:10]} 27. Bg1 {[%clk 0:00:09]}  Nf6 {[%clk 0:01:09]} 28. h3 {[%clk 0:00:08]}  Nd5 {[%clk 0:01:08]} 29. g4 {[%clk 0:00:08]}  Ne7 {[%clk 0:01:07]} 30. Bf2 {[%clk 0:00:07]}  Rf4 {[%clk 0:01:04]} 31. Kd2 {[%clk 0:00:06]}  fxg4 {[%clk 0:01:00]} 32. Ke2 {[%clk 0:00:05]}  g3 {[%clk 0:00:57]} 33. Bxg3 {[%clk 0:00:05]}  Rxf1 {[%clk 0:00:58]} 34. Kxf1 {[%clk 0:00:06]}  Kf7 {[%clk 0:00:58]} 35. Ke2 {[%clk 0:00:06]}  Nf5 {[%clk 0:00:58]} 36. Bf4 {[%clk 0:00:06]}  Ke6 {[%clk 0:00:59]} 37. Kf3 {[%clk 0:00:07]}  Rd8 {[%clk 0:00:58]} 38. Kg4 {[%clk 0:00:06]}  Kf7 {[%clk 0:00:54]} 39. Kf3 {[%clk 0:00:06]}  Rd3+ {[%clk 0:00:53]} 40. Ke4 {[%clk 0:00:06]}  Rxh3 {[%clk 0:00:53]} 41. c4 {[%clk 0:00:07]}  Ke6 {[%clk 0:00:52]} 42. b4 {[%clk 0:00:07]}  Ra3 {[%clk 0:00:50]} 43. b5 {[%clk 0:00:05]}  axb5 {[%clk 0:00:50]} 44. cxb5 {[%clk 0:00:06]}  Rxa2 {[%clk 0:00:50]} 45. Kf3 {[%clk 0:00:06]}  Rb2 {[%clk 0:00:50]} 46. Kg4 {[%clk 0:00:07]}  Rxb5 {[%clk 0:00:49]} 47. Kf3 {[%clk 0:00:08]}  Rb4 {[%clk 0:00:49]} 48. Kg4 {[%clk 0:00:08]}  Rc4 {[%clk 0:00:48]} 49. Kg5 {[%clk 0:00:09]}  b5 {[%clk 0:00:47]} 50. Kg4 {[%clk 0:00:07]}  b4 {[%clk 0:00:47]} 51. Kg5 {[%clk 0:00:08]}  b3 {[%clk 0:00:47]} 52. Kxg6 {[%clk 0:00:08]}  Rxf4 {[%clk 0:00:45]} 53. Kg5 {[%clk 0:00:09]}  Rf2 {[%clk 0:00:45]} 54. Kh5 {[%clk 0:00:10]}  Ne7 {[%clk 0:00:42]} 55. Kg5 {[%clk 0:00:11]}  b2 {[%clk 0:00:41]} 56. Kh4 {[%clk 0:00:12]}  b1=Q {[%clk 0:00:41]} 57. Kg3 {[%clk 0:00:13]}  Qg1+ {[%clk 0:00:41]} 58. Kh3 {[%clk 0:00:14]}  Rh2# {[%clk 0:00:41]} 0-1


[Site "https://www.chess.com"]